[Event "Titled Tuesday Blitz July 18 Early 2023"]
[White "Weetik, Vjacheslav"]
[Black "Mogirzan, Matei-Valeriu"]
[WhiteFideId "4153472"]
[BlackFideId "1257455"]
[WhiteElo "2765"]
[BlackElo "2546"]
[Result "0-1"]
[Round "3"]
[TimeControl "180+2"]
[Date "2023.07.18"]
[WhiteClock "0:00:02"]
[BlackClock "0:00:06"]
[Board "43"]

1. d4 {[%clk 0:02:58]}  c6 {[%clk 0:02:56]} 2. c4 {[%clk 0:02:57]}  d5 {[%clk 0:02:56]} 3. Nf3 {[%clk 0:02:58]}  Nf6 {[%clk 0:02:55]} 4. g3 {[%clk 0:02:58]}  e6 {[%clk 0:02:55]} 5. Bg2 {[%clk 0:02:58]}  Bd6 {[%clk 0:02:54]} 6. O-O {[%clk 0:02:58]}  Ne4 {[%clk 0:02:54]} 7. Nfd2 {[%clk 0:02:46]}  f5 {[%clk 0:02:53]} 8. f3 {[%clk 0:02:32]}  Nf6 {[%clk 0:02:37]} 9. e4 {[%clk 0:02:25]}  dxe4 {[%clk 0:02:24]} 10. fxe4 {[%clk 0:02:25]}  e5 {[%clk 0:02:22]} 11. c5 {[%clk 0:01:59]}  Bc7 {[%clk 0:02:19]} 12. Nc4 {[%clk 0:01:59]}  exd4 {[%clk 0:02:13]} 13. e5 {[%clk 0:01:57]}  Ng4 {[%clk 0:01:55]} 14. Nd6+ {[%clk 0:01:40]}  Bxd6 {[%clk 0:01:48]} 15. exd6 {[%clk 0:01:40]}  Qf6 {[%clk 0:01:27]} 16. Re1+ {[%clk 0:01:00]}  Kf8 {[%clk 0:01:11]} 17. Qe2 {[%clk 0:00:47]}  Bd7 {[%clk 0:00:48]} 18. h3 {[%clk 0:00:33]}  Nh6 {[%clk 0:00:18]} 19. Bxh6 {[%clk 0:00:15]}  gxh6 {[%clk 0:00:19]} 20. Qe7+ {[%clk 0:00:08]}  Qxe7 {[%clk 0:00:19]} 21. Rxe7 {[%clk 0:00:09]}  Rg8 {[%clk 0:00:17]} 22. Kf2 {[%clk 0:00:10]}  Rg7 {[%clk 0:00:15]} 23. Re5 {[%clk 0:00:08]}  Na6 {[%clk 0:00:10]} 24. Nd2 {[%clk 0:00:09]}  Nb4 {[%clk 0:00:10]} 25. Bf1 {[%clk 0:00:07]}  f4 {[%clk 0:00:07]} 26. g4 {[%clk 0:00:07]}  h5 {[%clk 0:00:07]} 27. g5 {[%clk 0:00:07]}  Bxh3 {[%clk 0:00:07]} 28. Nf3 {[%clk 0:00:04]}  Bxf1 {[%clk 0:00:07]} 29. Kxf1 {[%clk 0:00:04]}  Rf7 {[%clk 0:00:06]} 30. Rd1 {[%clk 0:00:03]}  Nd5 {[%clk 0:00:06]} 31. Rxd4 {[%clk 0:00:03]}  Ne3+ {[%clk 0:00:07]} 32. Kf2 {[%clk 0:00:03]}  Re8 {[%clk 0:00:08]} 33. Rxe8+ {[%clk 0:00:03]}  Kxe8 {[%clk 0:00:09]} 34. Re4+ {[%clk 0:00:04]}  Kf8 {[%clk 0:00:09]} 35. Ke2 {[%clk 0:00:03]}  Nf5 {[%clk 0:00:05]} 36. Kf2 {[%clk 0:00:02]}  Ng3 {[%clk 0:00:04]} 37. Re1 {[%clk 0:00:02]}  Nf5 {[%clk 0:00:05]} 38. Ne5 {[%clk 0:00:02]}  Rg7 {[%clk 0:00:04]} 39. g6 {[%clk 0:00:02]}  hxg6 {[%clk 0:00:04]} 40. d7 {[%clk 0:00:03]}  Ke7 {[%clk 0:00:01]} 41. Rd1 {[%clk 0:00:03]}  Kd8 {[%clk 0:00:02]} 42. Rd3 {[%clk 0:00:02]}  Ne3 {[%clk 0:00:02]} 43. Kf3 {[%clk 0:00:03]}  Ng4 {[%clk 0:00:03]} 44. Nxg4 {[%clk 0:00:03]}  hxg4+ {[%clk 0:00:04]} 45. Kxg4 {[%clk 0:00:03]}  Rxd7 {[%clk 0:00:05]} 46. Rf3 {[%clk 0:00:03]}  Rd4 {[%clk 0:00:05]} 47. Kg5 {[%clk 0:00:03]}  Rd5+ {[%clk 0:00:05]} 48. Kxg6 {[%clk 0:00:04]}  Rxc5 {[%clk 0:00:06]} 49. Rxf4 {[%clk 0:00:05]}  Rc2 {[%clk 0:00:06]} 50. Rb4 {[%clk 0:00:05]}  Kc7 {[%clk 0:00:06]} 51. Kf5 {[%clk 0:00:05]}  a5 {[%clk 0:00:07]} 52. Rb3 {[%clk 0:00:06]}  a4 {[%clk 0:00:06]} 53. Rb4 {[%clk 0:00:06]}  b5 {[%clk 0:00:07]} 54. Ke4 {[%clk 0:00:06]}  Kb6 {[%clk 0:00:06]} 55. Kd3 {[%clk 0:00:05]}  Rh2 {[%clk 0:00:06]} 56. Kc3 {[%clk 0:00:06]}  c5 {[%clk 0:00:05]} 57. Rg4 {[%clk 0:00:06]}  Ka5 {[%clk 0:00:06]} 58. b4+ {[%clk 0:00:05]}  cxb4+ {[%clk 0:00:05]} 59. Kd3 {[%clk 0:00:03]}  Rxa2 {[%clk 0:00:05]} 60. Rg8 {[%clk 0:00:03]}  b3 {[%clk 0:00:05]} 61. Kc3 {[%clk 0:00:04]}  Rc2+ {[%clk 0:00:06]} 62. Kd3 {[%clk 0:00:02]}  Kb4 {[%clk 0:00:06]} 0-1


[Site "https://www.chess.com"]

[Event "Titled Tuesday Blitz July 18 Early 2023"]
[White "Trifan, Andrei Ioan"]
[Black "djokovic74"]
[WhiteFideId "12967068"]
[WhiteElo "2538"]
[BlackElo "2764"]
[Result "0-1"]
[Round "3"]
[TimeControl "180+2"]
[Date "2023.07.18"]
[WhiteClock "0:00:16"]
[BlackClock "0:00:05"]
[Board "44"]

1. d4 {[%clk 0:03:00]}  e6 {[%clk 0:03:00]} 2. c4 {[%clk 0:02:56]}  Nf6 {[%clk 0:03:00]} 3. Nc3 {[%clk 0:02:43]}  Bb4 {[%clk 0:03:00]} 4. Nf3 {[%clk 0:02:42]}  O-O {[%clk 0:03:00]} 5. Qc2 {[%clk 0:02:43]}  d5 {[%clk 0:02:58]} 6. e3 {[%clk 0:02:43]}  b6 {[%clk 0:02:57]} 7. Be2 {[%clk 0:02:42]}  Bb7 {[%clk 0:02:57]} 8. O-O {[%clk 0:02:40]}  Nbd7 {[%clk 0:02:57]} 9. a3 {[%clk 0:02:40]}  Be7 {[%clk 0:02:57]} 10. Bd2 {[%clk 0:02:39]}  dxc4 {[%clk 0:02:56]} 11. Bxc4 {[%clk 0:02:39]}  c5 {[%clk 0:02:54]} 12. Be2 {[%clk 0:02:37]}  Rc8 {[%clk 0:02:50]} 13. Rfd1 {[%clk 0:02:37]}  Rc7 {[%clk 0:02:45]} 14. Nb5 {[%clk 0:02:36]}  Rc8 {[%clk 0:02:34]} 15. Nxa7 {[%clk 0:02:36]}  Ra8 {[%clk 0:02:35]} 16. Nb5 {[%clk 0:02:37]}  cxd4 {[%clk 0:02:33]} 17. Nbxd4 {[%clk 0:02:36]}  Nc5 {[%clk 0:02:31]} 18. Bb4 {[%clk 0:02:33]}  Qc8 {[%clk 0:02:30]} 19. Rac1 {[%clk 0:02:31]}  Be4 {[%clk 0:02:29]} 20. Qc4 {[%clk 0:02:26]}  Qb7 {[%clk 0:02:25]} 21. Ne1 {[%clk 0:02:24]}  Bd5 {[%clk 0:02:18]} 22. Qc2 {[%clk 0:02:24]}  e5 {[%clk 0:02:05]} 23. Nf5 {[%clk 0:02:24]}  Bb3 {[%clk 0:02:05]} 24. Nxe7+ {[%clk 0:02:23]}  Kh8 {[%clk 0:02:05]} 25. Qc3 {[%clk 0:02:00]}  Bxd1 {[%clk 0:02:04]} 26. Bxd1 {[%clk 0:02:01]}  Qxe7 {[%clk 0:01:57]} 27. Nd3 {[%clk 0:02:01]}  Nfd7 {[%clk 0:01:39]} 28. Nxc5 {[%clk 0:01:53]}  bxc5 {[%clk 0:01:36]} 29. Bxc5 {[%clk 0:01:53]}  Nxc5 {[%clk 0:01:36]} 30. Qxc5 {[%clk 0:01:54]}  Qe6 {[%clk 0:01:26]} 31. Qb4 {[%clk 0:01:24]}  Rab8 {[%clk 0:01:20]} 32. Qd2 {[%clk 0:01:20]}  Rfd8 {[%clk 0:01:18]} 33. Qe2 {[%clk 0:01:19]}  Ra8 {[%clk 0:01:01]} 34. h3 {[%clk 0:01:16]}  h6 {[%clk 0:00:55]} 35. a4 {[%clk 0:01:13]}  Qe7 {[%clk 0:00:51]} 36. Rc3 {[%clk 0:01:06]}  Rab8 {[%clk 0:00:43]} 37. Bb3 {[%clk 0:01:03]}  e4 {[%clk 0:00:33]} 38. Qc2 {[%clk 0:01:00]}  Rd7 {[%clk 0:00:27]} 39. Rc4 {[%clk 0:00:59]}  Re8 {[%clk 0:00:19]} 40. a5 {[%clk 0:00:57]}  Qd8 {[%clk 0:00:19]} 41. Ba4 {[%clk 0:00:54]}  Rd2 {[%clk 0:00:19]} 42. Qc3 {[%clk 0:00:53]}  Rf8 {[%clk 0:00:16]} 43. Rxe4 {[%clk 0:00:50]}  Qd6 {[%clk 0:00:14]} 44. b4 {[%clk 0:00:35]}  Rd8 {[%clk 0:00:14]} 45. g3 {[%clk 0:00:32]}  Qd5 {[%clk 0:00:12]} 46. Bc2 {[%clk 0:00:28]}  Qd6 {[%clk 0:00:04]} 47. Rc4 {[%clk 0:00:22]}  Qd7 {[%clk 0:00:02]} 48. a6 {[%clk 0:00:20]}  Qb5 {[%clk 0:00:02]} 49. a7 {[%clk 0:00:18]}  R2d7 {[%clk 0:00:02]} 50. Rc8 {[%clk 0:00:18]}  Qb7 {[%clk 0:00:03]} 51. Rxd8+ {[%clk 0:00:14]}  Rxd8 {[%clk 0:00:03]} 52. Qc5 {[%clk 0:00:14]}  Ra8 {[%clk 0:00:02]} 53. b5 {[%clk 0:00:12]}  Qxa7 {[%clk 0:00:03]} 54. b6 {[%clk 0:00:12]}  Qb7 {[%clk 0:00:03]} 55. Qd4 {[%clk 0:00:10]}  Rb8 {[%clk 0:00:02]} 56. Qf4 {[%clk 0:00:10]}  Qxb6 {[%clk 0:00:01]} 57. Qxf7 {[%clk 0:00:09]}  Qf6 {[%clk 0:00:01]} 58. Qc4 {[%clk 0:00:08]}  Rf8 {[%clk 0:00:02]} 59. Qe2 {[%clk 0:00:08]}  Qe5 {[%clk 0:00:02]} 60. Bb1 {[%clk 0:00:08]}  Kg8 {[%clk 0:00:02]} 61. Qa2+ {[%clk 0:00:08]}  Kh8 {[%clk 0:00:02]} 62. Qc2 {[%clk 0:00:08]}  Kg8 {[%clk 0:00:01]} 63. Ba2+ {[%clk 0:00:08]}  Kh8 {[%clk 0:00:02]} 64. Bb1 {[%clk 0:00:09]}  Kg8 {[%clk 0:00:02]} 65. Qh7+ {[%clk 0:00:09]}  Kf7 {[%clk 0:00:03]} 66. Qd3 {[%clk 0:00:10]}  Kg8 {[%clk 0:00:03]} 67. Kg2 {[%clk 0:00:11]}  Qf6 {[%clk 0:00:03]} 68. Qh7+ {[%clk 0:00:11]}  Kf7 {[%clk 0:00:03]} 69. Qe4 {[%clk 0:00:12]}  Kg8 {[%clk 0:00:04]} 70. Qh7+ {[%clk 0:00:12]}  Kf7 {[%clk 0:00:04]} 71. Ba2+ {[%clk 0:00:12]}  Ke7 {[%clk 0:00:05]} 72. Qe4+ {[%clk 0:00:13]}  Kd8 {[%clk 0:00:05]} 73. Qd5+ {[%clk 0:00:14]}  Ke7 {[%clk 0:00:04]} 74. Qc4 {[%clk 0:00:14]}  Qxf2+ {[%clk 0:00:04]} 75. Kh1 {[%clk 0:00:15]}  Qe1+ {[%clk 0:00:04]} 76. Kg2 {[%clk 0:00:16]}  Rf2# {[%clk 0:00:05]} 0-1


[Site "https://www.chess.com"]

[Event "Titled Tuesday Blitz July 18 Early 2023"]
[White "Skvortsov, Andrei"]
[Black "Glavina, Pablo"]
[WhiteFideId "24108600"]
[BlackFideId "100234"]
[WhiteElo "2760"]
[BlackElo "2373"]
[Result "1-0"]
[Round "3"]
[TimeControl "180+2"]
[Date "2023.07.18"]
[WhiteClock "0:02:22"]
[BlackClock "0:01:11"]
[Board "45"]

1. e4 {[%clk 0:03:00]}  c6 {[%clk 0:03:00]} 2. d4 {[%clk 0:02:57]}  d5 {[%clk 0:03:01]} 3. Nc3 {[%clk 0:02:56]}  dxe4 {[%clk 0:03:01]} 4. Nxe4 {[%clk 0:02:57]}  Nf6 {[%clk 0:03:01]} 5. Nxf6+ {[%clk 0:02:57]}  exf6 {[%clk 0:03:02]} 6. Nf3 {[%clk 0:02:52]}  Bd6 {[%clk 0:03:02]} 7. Bc4 {[%clk 0:02:51]}  O-O {[%clk 0:03:03]} 8. O-O {[%clk 0:02:51]}  Re8 {[%clk 0:03:03]} 9. h3 {[%clk 0:02:51]}  Nd7 {[%clk 0:03:03]} 10. Re1 {[%clk 0:02:51]}  Nf8 {[%clk 0:03:01]} 11. Be3 {[%clk 0:02:48]}  Bf5 {[%clk 0:02:56]} 12. c3 {[%clk 0:02:48]}  Ng6 {[%clk 0:02:56]} 13. Qb3 {[%clk 0:02:46]}  Qd7 {[%clk 0:02:55]} 14. Bf1 {[%clk 0:02:43]}  Bc7 {[%clk 0:02:51]} 15. Rad1 {[%clk 0:02:38]}  h5 {[%clk 0:02:49]} 16. d5 {[%clk 0:02:37]}  cxd5 {[%clk 0:01:59]} 17. Bb5 {[%clk 0:02:36]}  Qd6 {[%clk 0:01:54]} 18. Bxe8 {[%clk 0:02:36]}  Rxe8 {[%clk 0:01:55]} 19. Qxd5 {[%clk 0:02:34]}  Qxd5 {[%clk 0:01:41]} 20. Rxd5 {[%clk 0:02:33]}  Be6 {[%clk 0:01:41]} 21. Rdd1 {[%clk 0:02:33]}  Bxa2 {[%clk 0:01:36]} 22. Ra1 {[%clk 0:02:33]}  Bd5 {[%clk 0:01:36]} 23. Rxa7 {[%clk 0:02:32]}  f5 {[%clk 0:01:27]} 24. Bd2 {[%clk 0:02:28]}  Rd8 {[%clk 0:01:26]} 25. Nd4 {[%clk 0:02:25]}  Bb6 {[%clk 0:01:14]} 26. Raa1 {[%clk 0:02:25]}  Nh4 {[%clk 0:01:14]} 27. Bg5 {[%clk 0:02:22]}  Nxg2 {[%clk 0:01:11]} 28. Bxd8 {[%clk 0:02:22]} 1-0


[Site "https://www.chess.com"]

[Event "Titled Tuesday Blitz July 18 Early 2023"]
[White "Goltsev, Dmitry"]
[Black "AndresDelgado77"]
[WhiteFideId "24176710"]
[WhiteElo "2758"]
[BlackElo "2331"]
[Result "0-1"]
[Round "3"]
[TimeControl "180+2"]
[Date "2023.07.18"]
[WhiteClock "0:01:41"]
[BlackClock "0:01:43"]
[Board "46"]

1. e4 {[%clk 0:02:59]}  e6 {[%clk 0:02:58]} 2. d4 {[%clk 0:02:57]}  d5 {[%clk 0:02:59]} 3. exd5 {[%clk 0:02:58]}  exd5 {[%clk 0:02:59]} 4. Nf3 {[%clk 0:02:58]}  Nc6 {[%clk 0:02:57]} 5. c4 {[%clk 0:02:58]}  Nf6 {[%clk 0:02:56]} 6. Nc3 {[%clk 0:02:58]}  Bb4 {[%clk 0:02:56]} 7. a3 {[%clk 0:02:56]}  Bxc3+ {[%clk 0:02:55]} 8. bxc3 {[%clk 0:02:57]}  O-O {[%clk 0:02:53]} 9. Be2 {[%clk 0:02:57]}  Ne4 {[%clk 0:02:40]} 10. Bd2 {[%clk 0:02:50]}  dxc4 {[%clk 0:02:35]} 11. Bxc4 {[%clk 0:02:49]}  Bg4 {[%clk 0:02:34]} 12. Be2 {[%clk 0:02:44]}  Nxd2 {[%clk 0:02:26]} 13. Qxd2 {[%clk 0:02:42]}  Bxf3 {[%clk 0:02:24]} 14. Bxf3 {[%clk 0:02:37]}  Re8+ {[%clk 0:02:24]} 15. Kf1 {[%clk 0:02:36]}  Na5 {[%clk 0:02:20]} 16. g3 {[%clk 0:02:31]}  Nb3 {[%clk 0:02:17]} 17. Qd1 {[%clk 0:02:24]}  Nxa1 {[%clk 0:02:16]} 18. Qxa1 {[%clk 0:02:25]}  Qf6 {[%clk 0:02:12]} 19. Kg2 {[%clk 0:02:24]}  c6 {[%clk 0:02:07]} 20. Rb1 {[%clk 0:02:24]}  Re7 {[%clk 0:02:07]} 21. Qb2 {[%clk 0:02:21]}  Rae8 {[%clk 0:02:06]} 22. Qb4 {[%clk 0:02:20]}  h5 {[%clk 0:02:03]} 23. Bxh5 {[%clk 0:02:16]}  g6 {[%clk 0:01:54]} 24. Bf3 {[%clk 0:02:16]}  Kg7 {[%clk 0:01:54]} 25. Qc5 {[%clk 0:02:13]}  Rh8 {[%clk 0:01:50]} 26. Qxa7 {[%clk 0:01:58]}  Qf5 {[%clk 0:01:44]} 27. Rxb7 {[%clk 0:01:40]}  Qh3+ {[%clk 0:01:43]} 28. Kg1 {[%clk 0:01:41]}  Re1# {[%clk 0:01:43]} 0-1


[Site "https://www.chess.com"]

[Event "Titled Tuesday Blitz July 18 Early 2023"]
[White "realmadridfc123"]
[Black "Zaim, Marian"]
[BlackFideId "1204114"]
[WhiteElo "2746"]
[BlackElo "2312"]
[Result "1-0"]
[Round "3"]
[TimeControl "180+2"]
[Date "2023.07.18"]
[WhiteClock "0:00:11"]
[BlackClock "0:00:03"]
[Board "47"]

1. e4 {[%clk 0:02:59]}  d6 {[%clk 0:02:58]} 2. d4 {[%clk 0:02:59]}  Nf6 {[%clk 0:02:58]} 3. Nc3 {[%clk 0:02:59]}  g6 {[%clk 0:02:57]} 4. Nf3 {[%clk 0:02:58]}  Bg7 {[%clk 0:02:56]} 5. a4 {[%clk 0:02:57]}  O-O {[%clk 0:02:56]} 6. a5 {[%clk 0:02:55]}  Nbd7 {[%clk 0:02:52]} 7. Bc4 {[%clk 0:02:51]}  e6 {[%clk 0:02:42]} 8. O-O {[%clk 0:02:40]}  a6 {[%clk 0:02:40]} 9. Bb3 {[%clk 0:02:30]}  Qe7 {[%clk 0:02:38]} 10. h3 {[%clk 0:02:13]}  b5 {[%clk 0:02:38]} 11. e5 {[%clk 0:01:57]}  Ne8 {[%clk 0:02:29]} 12. Bg5 {[%clk 0:01:57]}  f6 {[%clk 0:02:28]} 13. exf6 {[%clk 0:01:57]}  Ndxf6 {[%clk 0:02:26]} 14. Re1 {[%clk 0:01:46]}  Qf7 {[%clk 0:01:59]} 15. Qe2 {[%clk 0:01:35]}  b4 {[%clk 0:01:48]} 16. Na4 {[%clk 0:01:27]}  Nd5 {[%clk 0:01:39]} 17. c4 {[%clk 0:01:16]}  Nf4 {[%clk 0:01:35]} 18. Bxf4 {[%clk 0:01:11]}  Qxf4 {[%clk 0:01:34]} 19. c5 {[%clk 0:01:11]}  d5 {[%clk 0:01:18]} 20. Qe3 {[%clk 0:01:00]}  Qxe3 {[%clk 0:01:17]} 21. fxe3 {[%clk 0:00:59]}  Bd7 {[%clk 0:01:14]} 22. e4 {[%clk 0:00:57]}  c6 {[%clk 0:01:10]} 23. Nb6 {[%clk 0:00:54]}  Rd8 {[%clk 0:01:08]} 24. e5 {[%clk 0:00:33]}  Nc7 {[%clk 0:01:03]} 25. Ra4 {[%clk 0:00:30]}  Nb5 {[%clk 0:00:57]} 26. Rxb4 {[%clk 0:00:30]}  Bh6 {[%clk 0:00:56]} 27. Re2 {[%clk 0:00:27]}  Bc1 {[%clk 0:00:53]} 28. Ba4 {[%clk 0:00:24]}  g5 {[%clk 0:00:39]} 29. Rb3 {[%clk 0:00:16]}  h5 {[%clk 0:00:35]} 30. Bxb5 {[%clk 0:00:15]}  cxb5 {[%clk 0:00:34]} 31. c6 {[%clk 0:00:15]}  Bxc6 {[%clk 0:00:34]} 32. Rc3 {[%clk 0:00:16]}  g4 {[%clk 0:00:28]} 33. hxg4 {[%clk 0:00:13]}  hxg4 {[%clk 0:00:27]} 34. Nh2 {[%clk 0:00:13]}  Bf4 {[%clk 0:00:15]} 35. Rxc6 {[%clk 0:00:12]}  g3 {[%clk 0:00:14]} 36. Ng4 {[%clk 0:00:12]}  Rde8 {[%clk 0:00:13]} 37. Nf6+ {[%clk 0:00:10]}  Rxf6 {[%clk 0:00:11]} 38. exf6 {[%clk 0:00:11]}  Kf7 {[%clk 0:00:12]} 39. Nxd5 {[%clk 0:00:10]}  exd5 {[%clk 0:00:09]} 40. Rxe8 {[%clk 0:00:09]}  Kxe8 {[%clk 0:00:10]} 41. Rxa6 {[%clk 0:00:09]}  Be3+ {[%clk 0:00:09]} 42. Kf1 {[%clk 0:00:10]}  Bxd4 {[%clk 0:00:09]} 43. Rb6 {[%clk 0:00:08]}  Bxb2 {[%clk 0:00:04]} 44. a6 {[%clk 0:00:08]}  Bd4 {[%clk 0:00:04]} 45. a7 {[%clk 0:00:07]}  Bxb6 {[%clk 0:00:04]} 46. a8=Q+ {[%clk 0:00:08]}  Kf7 {[%clk 0:00:05]} 47. Qb7+ {[%clk 0:00:09]}  Kxf6 {[%clk 0:00:05]} 48. Qxb6+ {[%clk 0:00:09]}  Ke5 {[%clk 0:00:05]} 49. Qxb5 {[%clk 0:00:10]}  Ke4 {[%clk 0:00:05]} 50. Qe2+ {[%clk 0:00:10]}  Kd4 {[%clk 0:00:05]} 51. Qg4+ {[%clk 0:00:10]}  Kc5 {[%clk 0:00:03]} 52. Qxg3 {[%clk 0:00:11]} 1-0


[Site "https://www.chess.com"]

[Event "Titled Tuesday Blitz July 18 Early 2023"]
[White "Borgaonkar Akshay"]
[Black "Shimanov, Aleksandr"]
[WhiteFideId "25639110"]
[BlackFideId "4198603"]
[WhiteElo "2618"]
[BlackElo "3005"]
[Result "1-0"]
[Round "3"]
[TimeControl "180+2"]
[Date "2023.07.18"]
[WhiteClock "0:00:15"]
[BlackClock "0:00:04"]
[Board "50"]

1. e4 {[%clk 0:02:55]}  e6 {[%clk 0:02:56]} 2. d3 {[%clk 0:02:48]}  d5 {[%clk 0:02:55]} 3. Nd2 {[%clk 0:02:49]}  c5 {[%clk 0:02:55]} 4. Ngf3 {[%clk 0:02:49]}  Nc6 {[%clk 0:02:55]} 5. g3 {[%clk 0:02:49]}  Nf6 {[%clk 0:02:55]} 6. Bg2 {[%clk 0:02:50]}  Be7 {[%clk 0:02:54]} 7. O-O {[%clk 0:02:50]}  O-O {[%clk 0:02:49]} 8. Re1 {[%clk 0:02:49]}  Qc7 {[%clk 0:02:49]} 9. Qe2 {[%clk 0:02:45]}  b5 {[%clk 0:02:49]} 10. e5 {[%clk 0:02:45]}  Nd7 {[%clk 0:02:49]} 11. Nf1 {[%clk 0:02:46]}  Bb7 {[%clk 0:02:49]} 12. h4 {[%clk 0:02:45]}  Rfc8 {[%clk 0:02:49]} 13. Bf4 {[%clk 0:02:45]}  Qd8 {[%clk 0:02:48]} 14. h5 {[%clk 0:02:43]}  h6 {[%clk 0:02:47]} 15. g4 {[%clk 0:02:41]}  Nf8 {[%clk 0:02:42]} 16. Qd2 {[%clk 0:02:33]}  Nh7 {[%clk 0:02:41]} 17. Ng3 {[%clk 0:02:26]}  b4 {[%clk 0:02:40]} 18. Kh2 {[%clk 0:02:25]}  a5 {[%clk 0:02:38]} 19. Rg1 {[%clk 0:02:25]}  a4 {[%clk 0:02:31]} 20. Bh3 {[%clk 0:02:24]}  Ng5 {[%clk 0:01:54]} 21. Nxg5 {[%clk 0:02:04]}  hxg5 {[%clk 0:01:53]} 22. Bxg5 {[%clk 0:01:51]}  Bxg5 {[%clk 0:01:52]} 23. f4 {[%clk 0:01:52]}  Nxe5 {[%clk 0:01:15]} 24. Raf1 {[%clk 0:01:50]}  Nxg4+ {[%clk 0:01:05]} 25. Bxg4 {[%clk 0:01:48]}  Bh6 {[%clk 0:01:06]} 26. Qe2 {[%clk 0:01:42]}  Qh4+ {[%clk 0:01:00]} 27. Bh3 {[%clk 0:01:40]}  Re8 {[%clk 0:00:58]} 28. Qe5 {[%clk 0:01:36]}  Rad8 {[%clk 0:00:43]} 29. Qc7 {[%clk 0:01:33]}  Qe7 {[%clk 0:00:42]} 30. Qe5 {[%clk 0:01:31]}  f6 {[%clk 0:00:41]} 31. Qe1 {[%clk 0:01:27]}  f5 {[%clk 0:00:40]} 32. Qe5 {[%clk 0:01:18]}  Qd6 {[%clk 0:00:36]} 33. Qe3 {[%clk 0:01:09]}  d4 {[%clk 0:00:35]} 34. Qf2 {[%clk 0:01:10]}  Kh8 {[%clk 0:00:31]} 35. Bg2 {[%clk 0:00:57]}  Bd5 {[%clk 0:00:28]} 36. Bxd5 {[%clk 0:00:53]}  Qxd5 {[%clk 0:00:29]} 37. Re1 {[%clk 0:00:54]}  Qxa2 {[%clk 0:00:26]} 38. Re5 {[%clk 0:00:53]}  Qxb2 {[%clk 0:00:25]} 39. Rge1 {[%clk 0:00:50]}  b3 {[%clk 0:00:21]} 40. R1e2 {[%clk 0:00:37]}  bxc2 {[%clk 0:00:21]} 41. Rxc2 {[%clk 0:00:37]}  Qb3 {[%clk 0:00:22]} 42. Rce2 {[%clk 0:00:22]}  Qxd3 {[%clk 0:00:15]} 43. Nxf5 {[%clk 0:00:23]}  Qc4 {[%clk 0:00:03]} 44. Nxh6 {[%clk 0:00:19]}  gxh6 {[%clk 0:00:03]} 45. f5 {[%clk 0:00:20]}  d3 {[%clk 0:00:03]} 46. R2e4 {[%clk 0:00:18]}  Rd4 {[%clk 0:00:04]} 47. Qf4 {[%clk 0:00:16]}  Qc2+ {[%clk 0:00:04]} 48. Kh3 {[%clk 0:00:16]}  Rg8 {[%clk 0:00:04]} 49. Qxh6# {[%clk 0:00:15]} 1-0


[Site "https://www.chess.com"]

[Event "Titled Tuesday Blitz July 18 Early 2023"]
[White "Zhigalko, Sergei"]
[Black "Ambartsumova, Karina"]
[WhiteFideId "13502956"]
[BlackFideId "4166299"]
[WhiteElo "2877"]
[BlackElo "2601"]
[Result "1-0"]
[Round "3"]
[TimeControl "180+2"]
[Date "2023.07.18"]
[WhiteClock "0:00:05"]
[BlackClock "0:00:00"]
[Board "53"]

1. e4 {[%clk 0:03:00]}  c5 {[%clk 0:02:57]} 2. Nf3 {[%clk 0:03:00]}  e6 {[%clk 0:02:55]} 3. c3 {[%clk 0:03:01]}  d5 {[%clk 0:02:54]} 4. e5 {[%clk 0:03:01]}  d4 {[%clk 0:02:54]} 5. Bd3 {[%clk 0:03:01]}  Bd7 {[%clk 0:02:51]} 6. O-O {[%clk 0:03:00]}  Bc6 {[%clk 0:02:49]} 7. Re1 {[%clk 0:03:01]}  g5 {[%clk 0:02:34]} 8. b4 {[%clk 0:03:00]}  g4 {[%clk 0:02:03]} 9. b5 {[%clk 0:03:00]}  Bd7 {[%clk 0:01:47]} 10. cxd4 {[%clk 0:02:59]}  gxf3 {[%clk 0:01:42]} 11. Qxf3 {[%clk 0:02:58]}  Bc8 {[%clk 0:01:28]} 12. Nc3 {[%clk 0:02:30]}  cxd4 {[%clk 0:01:14]} 13. Ne4 {[%clk 0:02:28]}  Be7 {[%clk 0:01:14]} 14. a4 {[%clk 0:02:08]}  Nd7 {[%clk 0:00:58]} 15. Qg3 {[%clk 0:01:52]}  Kf8 {[%clk 0:00:53]} 16. Ba3 {[%clk 0:00:53]}  Nh6 {[%clk 0:00:33]} 17. Ng5 {[%clk 0:00:40]}  Rg8 {[%clk 0:00:16]} 18. Nxh7+ {[%clk 0:00:33]}  Ke8 {[%clk 0:00:16]} 19. Qf4 {[%clk 0:00:23]}  Bxa3 {[%clk 0:00:11]} 20. Rxa3 {[%clk 0:00:20]}  Ng4 {[%clk 0:00:12]} 21. h3 {[%clk 0:00:15]}  Qh4 {[%clk 0:00:12]} 22. hxg4 {[%clk 0:00:14]}  Rxg4 {[%clk 0:00:09]} 23. Qh2 {[%clk 0:00:11]}  Ke7 {[%clk 0:00:06]} 24. Qxh4+ {[%clk 0:00:07]}  Rxh4 {[%clk 0:00:06]} 25. Ng5 {[%clk 0:00:07]}  b6 {[%clk 0:00:06]} 26. Be4 {[%clk 0:00:06]}  Rb8 {[%clk 0:00:06]} 27. Nf3 {[%clk 0:00:07]}  Rg4 {[%clk 0:00:06]} 28. Rd3 {[%clk 0:00:03]}  Bb7 {[%clk 0:00:05]} 29. Rxd4 {[%clk 0:00:02]}  Bxe4 {[%clk 0:00:04]} 30. Rdxe4 {[%clk 0:00:03]}  Rxe4 {[%clk 0:00:04]} 31. Rxe4 {[%clk 0:00:03]}  Nc5 {[%clk 0:00:05]} 32. Rc4 {[%clk 0:00:04]}  Rd8 {[%clk 0:00:05]} 33. d4 {[%clk 0:00:04]}  Nb3 {[%clk 0:00:04]} 34. Kf1 {[%clk 0:00:04]}  Rd7 {[%clk 0:00:04]} 35. Ke2 {[%clk 0:00:04]}  Na5 {[%clk 0:00:04]} 36. Rc3 {[%clk 0:00:04]}  f6 {[%clk 0:00:02]} 37. Ke3 {[%clk 0:00:04]}  f5 {[%clk 0:00:02]} 38. g3 {[%clk 0:00:04]}  Nb7 {[%clk 0:00:02]} 39. Ne1 {[%clk 0:00:04]}  Na5 {[%clk 0:00:02]} 40. Ng2 {[%clk 0:00:04]}  Nb7 {[%clk 0:00:02]} 41. Nf4 {[%clk 0:00:04]}  Na5 {[%clk 0:00:03]} 42. f3 {[%clk 0:00:04]}  Nb7 {[%clk 0:00:03]} 43. g4 {[%clk 0:00:04]}  fxg4 {[%clk 0:00:03]} 44. fxg4 {[%clk 0:00:05]}  Nd8 {[%clk 0:00:04]} 45. g5 {[%clk 0:00:05]}  Nf7 {[%clk 0:00:04]} 46. g6 {[%clk 0:00:06]}  Nh6 {[%clk 0:00:05]} 47. Ke4 {[%clk 0:00:05]}  Kf8 {[%clk 0:00:03]} 48. Nxe6+ {[%clk 0:00:05]}  Ke7 {[%clk 0:00:03]} 49. Nf4 {[%clk 0:00:06]}  Kf8 {[%clk 0:00:02]} 50. d5 {[%clk 0:00:06]}  Kg7 {[%clk 0:00:02]} 51. d6 {[%clk 0:00:05]}  Ng4 {[%clk 0:00:00]} 52. Rc7 {[%clk 0:00:05]} 1-0


[Site "https://www.chess.com"]